Cogmind - Beta 15 *** ADVENTURER MODE // 2025.08.26 @ 14:15:16 Player: lepire Result: Self-destructed Performance ------------- Evolutions (2) 1000 Regions Visited (3) 600 Robots Destroyed (90) 450 Value Destroyed (2342) 2342 Prototype IDs (7) 140 Alien Tech Used (0) 0 Bonus (0) 0 TOTAL SCORE: 4532 Bonus ------- None Cogmind --------- Core Integrity 423/550 Matter 300/300 Energy 280/280 System Corruption 4% Temperature Cool (0) Movement Walking (190) Ox1 Location -8/Materials Parts ------- > --- POWER (1) -------- Cooled Ion Engine (fused) > --- PROPULSION (4) --- Aluminum Leg Aluminum Leg Aluminum Leg > --- UTILITY (4) ------ Large Storage Unit Visual Processing Unit Signal Interpreter > --- WEAPON (2) ------- Heavy EM Shotgun Advanced Beam Rifle > --- INVENTORY (15) --- Light Nuclear Core Faulty Aerolev Unit Medium Storage Unit Improved Signal Interpreter Particle Charger Hardened Light Armor Plating Hacking Suite System Shield Rocket Launcher Datajack Peak State ------------ > --- POWER ------------ Cooled Ion Engine > --- PROPULSION ------- Aluminum Leg Aluminum Leg Aerolev Unit > --- UTILITY ---------- Medium Storage Unit Weight Redist. System Visual Processing Unit Signal Interpreter > --- WEAPON ----------- Heavy Particle Gun Advanced Beam Rifle > --- INVENTORY -------- Cooled Ion Engine Improved Flight Unit Improved Flight Unit Large Storage Unit Hardened Light Armor Plating Hacking Suite System Shield System Shield System Shield Datajack [Rating: 25] Favorites ----------- Power Light Ion Engine Engine Light Ion Engine Power Core Light Nuclear Core Propulsion Aluminum Leg Leg Aluminum Leg Hover Unit Aerolev Unit Flight Unit Flight Unit Utility Visual Processing Unit Device Weight Redist. System Storage Medium Storage Unit Processor Visual Processing Unit Hackware Hacking Suite Weapon Field Laser Energy Gun Field Laser Ballistic Gun Shotgun Special Weapon Plasma Cutter Impact Weapon Mace Special Melee Weapon Datajack Build | -11 -10 -9 -8 ------- Run | Yrd Mat Mat Mat Slots Evolved 4 | . . 2 2 Power . | . . . . Propulsion 2 | . . . 2 Utility 2 | . . 2 . Weapon . | . . . . Parts Attached 53 | 7 8 28 10 Power 10 | 1 1 7 1 Engine 8 | 1 1 5 1 Core 2 | . . 2 . Reactor . | . . . . Propulsion 21 | 2 4 10 5 Treads . | . . . . Leg 16 | 2 1 10 3 Wheel . | . . . . Hover 1 | . . . 1 Flight 4 | . 3 . 1 Utility 8 | 1 3 4 . Device 2 | . 1 1 . Storage 3 | 1 . 2 . Processor 2 | . 2 . . Hackware 1 | . . 1 . Protection . | . . . . Artifact . | . . . . Weapon 14 | 3 . 7 4 Energy Gun 8 | 1 . 4 3 Energy Cannon . | . . . . Ballistic Gun 3 | 2 . 1 . Ballistic Cannon . | . . . . Launcher . | . . . . Special Weapon 1 | . . 1 . Impact Weapon 1 | . . 1 . Slashing Weapon . | . . . . Piercing Weapon . | . . . . Special Melee Weapon 1 | . . . 1 Unidentified Prototypes 7 | . . 2 5 Parts Lost 11 | . 1 6 4 Power 1 | . . 1 . Propulsion 3 | . . 1 2 Utility 2 | . . 1 1 Weapon 5 | . 1 3 1 Highest Loss Streak 2 | . 1 2 2 To Critical Strikes . | . . . . Average Backups 7 | 1 3 7 9 Power . | . . . 1 Propulsion 1 | . 1 1 1 Utility 3 | . . 4 5 Weapon . | . 1 . . Tool/Special . | . . . . Unused Backups 14 | . . 4 10 Power 1 | . . . 1 Propulsion 1 | . . . 1 Utility 10 | . . 3 7 Weapon 2 | . . 1 1 Tool/Special . | . . . . Average Slot Usage (%) 91 | . 89 94 81 Engine 10 | . 14 9 8 Leg 15 | . 11 14 20 Flight 7 | . 16 6 . Device 7 | . . 8 6 Storage 8 | . 11 7 9 Processor 20 | . 15 22 18 Hackware 1 | . . 2 . Energy Gun 13 | . 7 13 17 Ballistic Gun 5 | . 11 5 . Peak Build Rating 25 | 6 8 19 25 Average Rating 14 | 4 7 14 20 On Entrance 7 | . 6 7 18 Naked Turns . | . . . . Heaviest Build 34 | 14 14 24 34 Greatest Support 36 | 20 20 29 36 Greatest Overweight (x) 2 | . 2 2 1 Average Overweight (x) . | . . . . Largest Inventory Capacity 15 | 8 8 15 15 Average Capacity 8 | 6 7 8 11 Most Carried 10 | 2 7 10 10 Average Carried 7 | 1 3 7 9 Final Capacity 15 | 8 5 10 15 Final Carried 10 | 2 5 9 10 Class Distribution -------------------- 49% | Scavenger-Mutant 27% | Mutant 8% | Hacker-Scout 7% | Scout 4% | Hacker-Mutant Dominant Class ---------------- Mutant | -10/Materials Scavenger-Mutant | -9/Materials Scavenger-Mutant | -8/Materials Resources | -11 -10 -9 -8 ----------- Run | Yrd Mat Mat Mat Matter Collected 1364 | 254 308 655 147 Remotely . | . . . . Salvage Created 3664 | 100 567 2272 725 Parts 190 | 3 35 117 35 Haulers Intercepted 9 | . 2 5 2 Recyclers Shooed 4 | . 3 1 . Parts Field Recycled . | . . . . Retrieved Matter . | . . . . Parts Self-Destructed . | . . . . Prevented . | . . . . Kills | -11 -10 -9 -8 ------- Run | Yrd Mat Mat Mat Combat Hostiles Destroyed 59 | . 10 39 10 Guns 58 | . 10 38 10 Classes Destroyed 8 | 1 5 2 . Worker 2 | . 1 1 . Hauler 9 | . 2 5 2 Recycler 8 | 1 2 3 2 Operator 3 | . . 3 . Watcher 9 | . 3 5 1 Swarmer 12 | . 6 3 3 Grunt 35 | . 4 26 5 Sentry 12 | . . 10 2 Best Kill Streak 6 | 1 5 6 4 Combat Bots Only 6 | . 4 6 2 Max Kills in Single Turn 2 | 1 2 1 1 Gunslinging . | . . . . Exploded . | . . . . Melee . | . . . . Uniques/NPCs Destroyed . | . . . . Combat | -11 -10 -9 -8 -------- Run | Yrd Mat Mat Mat Hostile Shots Fired 313 | . 75 169 69 Missed 93 | . 28 47 18 Hits 220 | . 47 122 51 Projectile 220 | . 47 122 51 Critical Strikes 5 | . . 3 2 Damage Taken 2162 | . 374 1249 539 Core 417 | . 90 200 127 Absorbed by Shields . | . . . . Ignored by Resistances 658 | . 125 373 160 Regen/Repaired (Parts) 22 | . . 22 . Core Remaining (%) 71 | 100 64 50 . Volleys Fired 231 | 1 46 139 45 Largest 2 | 2 2 2 2 Hottest 126 | 60 40 126 116 Shots Fired 401 | 2 75 246 78 Gun 401 | 2 75 246 78 Cannon . | . . . . Launcher . | . . . . Special . | . . . . Kinetic 151 | 1 68 82 . Thermal 201 | . . 143 58 Explosive . | . . . . Electromagnetic 49 | 1 7 21 20 Robot Hit Streak 36 | 1 22 36 34 Robot Miss Streak 5 | 1 3 5 2 Penetration Max . | . . . . Secondary Targets 3 | . 2 . 1 Max Gunslinging Chain 1 | . 1 . 1 Shots Hit Robots 318 | 1 63 196 58 Core Hits 147 | 1 25 91 30 Critical Kills . | . . . . Critical Parts Destroyed . | . . . . Critical Strikes 10 | . . 5 5 Burn 10 | . . 5 5 Melee Attacks 18 | . . 18 . Impact 18 | . . 18 . Slashing . | . . . . Piercing . | . . . . Sneak Attacks . | . . . . Combat Hostiles . | . . . . Follow-up Attacks . | . . . . Damage Inflicted 5449 | 15 900 3312 1222 Guns 5249 | 15 810 3246 1178 Cannons . | . . . . Explosions 156 | . 90 29 37 Melee . | . . . . Ramming 44 | . . 37 7 Kinetic 1740 | . 696 1044 . Thermal 2919 | . 90 2008 821 Explosive . | . . . . Electromagnetic 746 | 15 114 223 394 Impact . | . . . . Slashing . | . . . . Piercing . | . . . . Highest Corruption 4 | . . . 4 Average Corruption 3 | . . . 3 Corruption Purged . | . . . . Corruption Blocked . | . . . . Effects 12 | . . . 12 Message Errors 4 | . . . 4 Matter Fused 1 | . . . 1 Energy Discharges 2 | . . . 2 Parts Rejected 1 | . . . 1 Parts Fused 1 | . . . 1 Data Loss (minor) 3 | . . . 3 Overload Shots . | . . . . Overflow Damage . | . . . . Projectiles . | . . . . Explosions . | . . . . Melee . | . . . . Knockbacks 1 | . . . 1 Impact 1 | . . . 1 Kinetic . | . . . . Secondary . | . . . . Self-Inflicted Damage 67 | . 25 . 42 Shots 2 | . 1 . 1 Rammed . | . . . . Targets Rammed 9 | . . 6 3 Kicked 9 | . . 6 3 Crushed . | . . . . Highest Temperature 465 | . 18 465 189 Average Temperature 91 | . 6 107 56 Received Heat Transfer 1092 | . 144 723 225 Effects 10 | . . 10 . Shutdowns 3 | . . 3 . Energy Bleed 1 | . . 1 . Interference 5 | . . 5 . Damage (minor) 1 | . . 1 . Siege Activations . | . . . . Martial Activations . | . . . . Shielding Activations . | . . . . Robots Disrupted . | . . . . Combat Hostiles . | . . . . Robots Corrupted . | . . . . Combat Hostiles . | . . . . Parts Fried . | . . . . Impact Corruptions . | . . . . Robots Melted 2 | . . 2 . Combat Hostiles 1 | . . 1 . Parts Melted 14 | . . 10 4 Heat Transferred 6836 | . 150 4786 1900 Parts Sabotaged . | . . . . Parts Stolen . | . . . . Parts Stripped . | . . . . Power Chain Reactions 5 | . 2 1 2 Alert | -11 -10 -9 -8 ------- Run | Yrd Mat Mat Mat Maximum Alert Level 1 | . . 1 . Low Security (%) 91 | 100 100 86 100 Level 1 8 | . . 13 . Level 2 . | . . . . Level 3 . | . . . . Level 4 . | . . . . Level 5 . | . . . . High Security . | . . . . Max Security . | . . . . Peak Influence 302 | 5 160 302 146 Initial 49 | . . . 49 Average 66 | . 37 75 65 Influence Increases 2105 | 5 340 1282 478 Destroy 0b10 Robot/C 1180 | . 200 780 200 Destroy 0b10 Robot/NC 155 | 5 40 85 25 Destroy Leader 356 | . 50 250 56 Successful Hack 22 | . 10 7 5 Disable Machine 72 | . . 54 18 Destroy Structure 35 | . 10 16 9 Partial Spotted 30 | . . 30 . Lose Combat Pursuer 255 | . 30 60 165 Influence Decreases 1984 | 5 340 1145 494 Entered New Map 88 | . . . 88 Time Decay 1664 | 5 203 1090 366 Lost Part 105 | . 10 55 40 Purge Threat 127 | . 127 . . Squads Dispatched 11 | . 1 8 2 Investigation 5 | . 1 4 . Extermination . | . . . . Reinforcement 6 | . . 4 2 Assault . | . . . . Garrison . | . . . . Intercept . | . . . . Searches Triggered . | . . . . Construction Impeded 1 | . . 1 . Haulers Reinforced . | . . . . Active Scanning Responses . | . . . . Cargo Convoy Interrupts . | . . . . Stealth | -11 -10 -9 -8 --------- Run | Yrd Mat Mat Mat Distress Signals 5 | . . 1 4 Communications Jammed . | . . . . Distress Signals . | . . . . Times Spotted 105 | . 17 57 31 Peak Tracking Total 6 | . 5 5 6 Tactical Retreats 8 | . 1 2 5 Traps | -11 -10 -9 -8 ------- Run | Yrd Mat Mat Mat Traps Triggered 6 | . 1 5 . Indirectly . | . . . . Trap Hack Attempts 9 | . . . 9 Triggered . | . . . . Disarmed 2 | . . . 2 Reprogrammed 1 | . . . 1 Reused . | . . . . Traps Extracted . | . . . . Installed . | . . . . Triggered . | . . . . Machines | -11 -10 -9 -8 ---------- Run | Yrd Mat Mat Mat Machines Disabled 8 | . . 6 2 Max in Single Turn 1 | . . 1 1 Machines Repaired . | . . . . Machines Dismantled 2 | . . 2 . Machines Sabotaged . | . . . . Overloaded Fab Kills . | . . . . Hacking | -11 -10 -9 -8 --------- Run | Yrd Mat Mat Mat Machines Accessed 15 | . 4 9 2 Terminals 9 | . 4 3 2 Fabricators . | . . . . Repair Stations 2 | . . 2 . Recycling Units 2 | . . 2 . Scanalyzers 2 | . . 2 . Garrison Access . | . . . . Total Hacks 40 | . 12 22 6 Successful 31 | . 9 20 2 Failed 9 | . 3 2 4 Catastrophic . | . . . . Database Lockouts . | . . . . Manual 6 | . . . 6 Terminals 22 | . 12 4 6 Fabricators . | . . . . Repair Stations 4 | . . 4 . Recycling Units 3 | . . 3 . Scanalyzers 11 | . . 11 . Garrison Access . | . . . . Terminal Hacks 15 | . 9 4 2 Alert Level 2 | . 2 . . Unreport Threat 1 | . 1 . . Locate Traps 2 | . 1 . 1 Maintenance Status 2 | . 1 1 . Surveillance Status 1 | . . 1 . Patrol Status 1 | . 1 . . Transport Status 1 | . 1 . . Reinforcement Status 1 | . . 1 . Hauler Manifests 1 | . 1 . . Zone Layout 3 | . 1 1 1 Fabricator Hacks . | . . . . Repair Station Hacks 4 | . . 4 . Scan Component 2 | . . 2 . Repair 2 | . . 2 . Recycling Unit Hacks 2 | . . 2 . Report Inventory 2 | . . 2 . Scanalyzer 10 | . . 10 . Insert Component 5 | . . 5 . Analyze 5 | . . 5 . Garrison Access Hacks . | . . . . Unauthorized Hacks . | . . . . Terminals . | . . . . Fabricators . | . . . . Repair Stations . | . . . . Recycling Units . | . . . . Scanalyzers . | . . . . Garrison Access . | . . . . Data Cores Recovered . | . . . . Used . | . . . . Hacking Detections 8 | . 2 4 2 Full Trace Events 1 | . . 1 . Feedback Events . | . . . . Feedback Blocked . | . . . . Robot Schematics Acquired . | . . . . Robots Built . | . . . . Authchips . | . . . . Time . | . . . . Total Robot Build Rating . | . . . . Part Schematics Acquired 4 | . . 4 . Parts Built . | . . . . Authchips . | . . . . Time . | . . . . Total Part Build Rating . | . . . . Parts Repaired 2 | . . 2 . Time 58 | . . 58 . Parts Recycled . | . . . . Recycled Matter . | . . . . Retrieved Matter . | . . . . Retrieved Components . | . . . . Parts Scanalyzed 4 | . . 4 . Part Schematics Acquired 4 | . . 4 . Parts Damaged . | . . . . Bothacking | -11 -10 -9 -8 ------------ Run | Yrd Mat Mat Mat Used RIF Installer . | . . . . Robots Hacked . | . . . . Non-combat . | . . . . Combat . | . . . . Robot Hacks Applied . | . . . . Relay Couplers Released . | . . . . Fabnet Peak Effective % . | . . . . Robots Rewired . | . . . . Allies Hacked . | . . . . Hacks Repelled . | . . . . Allies | -11 -10 -9 -8 -------- Run | Yrd Mat Mat Mat Total Allies . | . . . . Largest Group . | . . . . Highest-Rated Group . | . . . . Highest-Rated Ally . | . . . . Total Orders . | . . . . Ally Attacks . | . . . . Total Damage . | . . . . Kills . | . . . . Allies Corrupted . | . . . . Allies Melted . | . . . . Intel | -11 -10 -9 -8 ------- Run | Yrd Mat Mat Mat Active Infowar (turns) 4424 | . 681 2930 813 Optics 4424 | . 681 2930 813 Sensors 855 | . 4 851 . Robot Analysis Total . | . . . . Derelict Logs Recovered . | . . . . Drone Launches . | . . . . Drone Recoveries . | . . . . Exploration | -11 -10 -9 -8 ------------- Run | Yrd Mat Mat Mat Turns Passed 4613 | 71 747 2982 813 Spaces Moved 3095 | 52 725 1892 426 Core 9 | 9 . . . Treads . | . . . . Legs 1783 | 43 153 1161 426 Wheels . | . . . . Hover . | . . . . Flight 1303 | . 572 731 . Fastest Speed 37 | 50 37 37 120 Average Speed 98 | 107 80 96 132 Slowest Speed 260 | 120 210 260 190 Overloaded Moves . | . . . . Propulsion Burnouts . | . . . . Robots Hopped 1 | . 1 . . Potential Cave-ins . | . . . . Cave-ins Triggered . | . . . . Exploration Rate (%) 50 | 5 70 96 31 Regions Visited 3 Branch Regions . Pre-discovered Areas . | . . . . Known Exits Taken 2 | . 1 1 . Unknown Exits Taken 1 | 1 . . . Scrap Searched . | . . . . Spaces Dug 12 | . . 12 . Terrain Destroyed 30 | . 9 16 5 Melee 12 | . . 12 . Projectile . | . . . . AOE 18 | . 9 4 5 Terrain Rammed . | . . . . Walls Destroyed . | . . . . Machines Disabled . | . . . . Actions | -11 -10 -9 -8 --------- Run | Yrd Mat Mat Mat Total 4129 | 61 809 2670 589 Wait 577 | . 19 479 79 Move 3090 | 51 722 1891 426 Hop 1 | . 1 . . Pick Up 41 | 2 5 27 7 Fast Attach 17 | 6 2 4 5 Attach 10 | . 1 7 2 Detach 3 | . 2 . 1 Swap 40 | 1 6 27 6 Drop 35 | . 5 24 6 Fire 231 | 1 46 139 45 Melee 18 | . . 18 . Ram . | . . . . Kick 9 | . . 6 3 Crush . | . . . . Escape Stasis . | . . . . Rewire . | . . . . Trap 9 | . . . 9 Miscellaneous 48 | . . 48 . Route ------- -11/Scrapyard -10/Materials (discovered 4 exits: *Mat x2 / *Min x2) -9/Materials (discovered 5 exits: *Mat x3 / *Min x2) -8/Materials History --------- Turn | Location | Event 7 | -11/Scrapyard | Discovered new exit (range 16) 72 | -11/Scrapyard | Entered Materials 104 | -10/Materials | Discovered new exit (range 11) 325 | -10/Materials | Build established: Mutant 500 | -10/Materials | Discovered new exit (range 8) 654 | -10/Materials | Discovered new exit (range 15) 678 | -10/Materials | Identified exit to Materials 700 | -10/Materials | Identified exit to Mines 733 | -10/Materials | Discovered exit to Mines (range 9) 819 | -10/Materials | Entered another Materials area 819 | -9/Materials | Evolved 2 slots: Utility x2 873 | -9/Materials | Repaired Flight Unit 1124 | -9/Materials | Build established: Scout 1558 | -9/Materials | Build established: Hacker-Scout 1942 | -9/Materials | Discovered new exit (range 17) 2293 | -9/Materials | Discovered new exit (range 17) 2490 | -9/Materials | Identified exit to Materials 2495 | -9/Materials | Build established: Scavenger-Mutant 2700 | -9/Materials | Identified exit to Mines 2948 | -9/Materials | Discovered exit to Materials (range 7) 3250 | -9/Materials | Discovered exit to Mines (range 17) 3680 | -9/Materials | Discovered exit to Materials (range 12) 3727 | -9/Materials | Repaired Weight Redist. System 3801 | -9/Materials | Entered another Materials area 3801 | -8/Materials | Evolved 2 slots: Propulsion x2 4614 | -8/Materials | Self-destructed Last Messages --------------- 04556_ K-01 Serf collects debris. 04556_ G-47 Trooper misfires. 04557_ G-47 Trooper destroyed. 04557_ Door malfunctions. 04559_ R-06 Scavenger collects Imp. Heat Sink. 04560_ K-01 Serf collects debris. 04562_ R-06 Scavenger collects Imp. Hover Unit. 04564_ K-01 Serf collects debris. 04565_ U-05 Engineer repairs door. 04565_ Acquired Aluminum Leg. 04566_ R-06 Scavenger collects Lgt. Assault Rifle. 04567_ R-06 Scavenger destroyed. 04568_ K-01 Serf collects debris. 04571_ System corrupted: Component data lost. 04576_ Kicked K-01 Serf out of the way. 04576_ K-01 Serf knocked back. 04578_ Acquired 6 matter. 04600_ W-25 Informer distress signal alerts nearby ally. Map ----- +----------------------------------------------------+ | | | | | | | | | | | ?????????????????????????????????????????????????? | | ?????????????????????????????????????????????????? | | ?????????????????????????????????????????????????? | | ?????????????????????????????????????????????????? | | ?????????????????????????????????????????????????? | | ?????????????????????????????????????????????????? | | ?????????????????????????????????????????????????? | | ?????????????????????????????????????????????????? | | ?????????????????????????????????????????????????? | | ?????????????????????????????????????????????????? | | ?????????????????????????????????????????????????? | | ????????????????????????#+#####??????????????????? | | ????????????????????????# ##?????????????????? | | ???????????????##???????#""" w??????????????????? | | ???????????????] ??????#""" #??????????????????? | | ???????????????? ?????#"""Y #??????????????????? | | ????????????????? #????#""" #??????????????????? | | ?????????????????? + ???#""" #??????????????????? | | ???????????????????# ??# #??????????????????? | | ???????????????????# ?# #??????????????????? | | ??????############## ##@ #??????????????????? | | ??????# # ###g###############??????? | | ??????# """ # T | | ??????# """ ]]# "" [* | | ??????# """ ]# ==%[ | | ??????# # ###/####### ###+######## | | ??????# #######[%[= ## # ## | | ??????# ] #?????#=[* ## # ##"S | | ??????########+####?????#! * [ ## # """##""" | | ????????????# #########%%*= ## # """## "" | | ????????????# % %*%/**= ## # """## | | ????????????# #########[* ## # """## | | ##########??# #???????#= ## # """## | | # #??# #???????# ## # ## | | # ] #??# #???????# ## ############ | | # #??# ################### ## #? | | # #??# ##"" """ #? | | # #??# ##"T """ #? | | # """" #??# ##""[""" #? | | # """" #??# ###############+######## *%= #? | | # """" #??# #????????? # " " #? | | # #??# #????????? # """ ## | | #####+####### #????????? # """ # | | ######???? # ## | | [ #???? #####+####? | +----------------------------------------------------+ Best States ------------- Heat Dissipation 31 Energy Generation 14 Energy Capacity 280 Matter Stores 300 Matter Capacity 300 Sight Range 18 Robot Scan Range 14 Terrain Scan Density 10 Additional Mass Support 6 Resistance: KI 20 Resistance: TH 20 Resistance: EX 20 Resistance: EM 20 Resistance: I 20 Resistance: S 20 Resistance: P 20 Evasion (%) 62 Offensive Hacking 20 Item Schematics ----------------- Hrd. Light Armor Plating | -9/Materials | Scanalyzed Hacking Suite | -9/Materials | Scanalyzed Datajack | -9/Materials | Scanalyzed System Shield | -9/Materials | Scanalyzed Robot Schematics ------------------ None Fabricated ------------ Nothing Repaired ---------- Flight Unit | 40% | -9/Materials Weight Redist. System | 54% | -9/Materials Alien Tech Used ----------------- None Achievements -------------- None Challenges ------------ None Game ------ Seed GravmagNetworkedBank Manual? 0 Play Time 01:07:09 Cumulative 18.9 hours Start 2025.08.25 @ 13:54:29 End 2025.08.26 @ 14:15:16 Sessions 3 Manual Loads 0 Difficulty Adventurer Special Mode None Game No. 28 Rogue 0 Adventurer 28 Explorer 0 Win Type - Total 0 Types 0/0/0/0/0/0/0/0/0/0 Lore% 10 Gallery% 18 Achievement% 16 Wizard Run 0 Options --------- Layout 1 ASCII 0 Keyboard 1 Movement Arrows Keybinds 0 Fullscreen 1 Font 24/Smallcaps Map View 50x35 Zoom Use 0% Tactical HUD 1 Map Filters NONE Filters NONE Steam 1 RUN: db708843-2cb1-4f8a-85d2-31cd92d36148